[Event "Late-Titled-Tuesday-Blitz-February-27-2024"]
[Site "Chess.com"]
[Date "2024.02.27"]
[Round "4"]
[White "MFatigue"]
[Black "Jahonas"]
[Result "1/2-1/2"]
[WhiteElo "2512"]
[BlackElo "2372"]
[TimeControl "180+1"]
[EndTime "14:40:45 PST"]
[Termination "Game drawn by repetition"]

1. e4 {[%clk 0:02:58.2]} 1... e5 {[%clk 0:02:59.6]} 2. Nf3 {[%clk 0:02:56.4]}
2... Nf6 {[%clk 0:02:57.4]} 3. d4 {[%clk 0:02:56.1]} 3... Nxe4 {[%clk
0:02:46.2]} 4. dxe5 {[%clk 0:02:56.1]} 4... d5 {[%clk 0:02:44.8]} 5. Bd3 {[%clk
0:02:53.5]} 5... Nc5 {[%clk 0:02:43.7]} 6. O-O {[%clk 0:02:52.5]} 6... Be7
{[%clk 0:02:42.8]} 7. h3 {[%clk 0:02:52.2]} 7... O-O {[%clk 0:02:41.6]} 8. Nc3
{[%clk 0:02:52.8]} 8... c6 {[%clk 0:02:36]} 9. Bf4 {[%clk 0:02:51.8]} 9... g6
{[%clk 0:02:33.2]} 10. Qd2 {[%clk 0:02:49]} 10... Nxd3 {[%clk 0:02:32.3]} 11.
cxd3 {[%clk 0:02:47.5]} 11... Nd7 {[%clk 0:02:26.8]} 12. Rae1 {[%clk 0:02:32.1]}
12... Nc5 {[%clk 0:02:25.9]} 13. Bh6 {[%clk 0:02:32]} 13... Re8 {[%clk
0:02:24.1]} 14. Ng5 {[%clk 0:02:30.6]} 14... Ne6 {[%clk 0:02:20.3]} 15. Nxe6
{[%clk 0:02:20.2]} 15... fxe6 {[%clk 0:02:06.8]} 16. f4 {[%clk 0:02:20.6]} 16...
Bf8 {[%clk 0:01:52.4]} 17. Bxf8 {[%clk 0:02:15.4]} 17... Rxf8 {[%clk 0:01:50.5]}
18. Kh2 {[%clk 0:02:13.8]} 18... Qe7 {[%clk 0:01:49.7]} 19. g4 {[%clk
0:02:07.9]} 19... Bd7 {[%clk 0:01:47]} 20. Ne2 {[%clk 0:01:50.7]} 20... Rf7
{[%clk 0:01:31.9]} 21. Ng3 {[%clk 0:01:45.7]} 21... Raf8 {[%clk 0:01:30.3]} 22.
Rf2 {[%clk 0:01:46]} 22... Qc5 {[%clk 0:01:12.6]} 23. Ref1 {[%clk 0:01:35.6]}
23... Qd4 {[%clk 0:01:06.9]} 24. Ne2 {[%clk 0:01:34.2]} 24... Qa4 {[%clk
0:01:05.1]} 25. b3 {[%clk 0:01:33.6]} 25... Qa3 {[%clk 0:01:02.5]} 26. Ng3
{[%clk 0:01:27.4]} 26... a5 {[%clk 0:00:56.8]} 27. f5 {[%clk 0:00:30.5]} 27...
exf5 {[%clk 0:00:49.9]} 28. gxf5 {[%clk 0:00:31.4]} 28... Bxf5 {[%clk
0:00:40.5]} 29. Nxf5 {[%clk 0:00:31.7]} 29... gxf5 {[%clk 0:00:39]} 30. Qh6
{[%clk 0:00:19.2]} 30... Qe7 {[%clk 0:00:31]} 31. d4 {[%clk 0:00:13.4]} 31...
Kh8 {[%clk 0:00:28.3]} 32. Rg2 {[%clk 0:00:10.8]} 32... f4 {[%clk 0:00:27.3]}
33. Rfg1 {[%clk 0:00:09.8]} 33... f3 {[%clk 0:00:16.6]} 34. Rf2 {[%clk
0:00:09.3]} 34... Rg8 {[%clk 0:00:14.4]} 35. Rxg8+ {[%clk 0:00:09.4]} 35... Kxg8
{[%clk 0:00:14.5]} 36. Qh5 {[%clk 0:00:09.9]} 36... Qe6 {[%clk 0:00:13.2]} 37.
Rxf3 {[%clk 0:00:08.7]} 37... Rxf3 {[%clk 0:00:13.3]} 38. Qxf3 {[%clk
0:00:09.6]} 38... Kg7 {[%clk 0:00:13.8]} 39. Qg4+ {[%clk 0:00:08.6]} 39... Qxg4
{[%clk 0:00:13.1]} 40. hxg4 {[%clk 0:00:09.5]} 40... b6 {[%clk 0:00:12.9]} 41.
Kg3 {[%clk 0:00:06.4]} 41... Kf7 {[%clk 0:00:12.8]} 42. Kf4 {[%clk 0:00:05.6]}
42... c5 {[%clk 0:00:13.3]} 43. Ke3 {[%clk 0:00:02.7]} 43... Ke6 {[%clk
0:00:13.2]} 44. Kd3 {[%clk 0:00:02.9]} 44... h6 {[%clk 0:00:13.1]} 45. Ke3
{[%clk 0:00:03.1]} 45... Kf7 {[%clk 0:00:09.3]} 46. Kd3 {[%clk 0:00:03]} 46...
Ke6 {[%clk 0:00:09.2]} 47. Kc3 {[%clk 0:00:03]} 47... Ke7 {[%clk 0:00:07.3]} 48.
a3 {[%clk 0:00:03]} 48... Ke6 {[%clk 0:00:07.4]} 49. Kd3 {[%clk 0:00:03.4]}
49... Ke7 {[%clk 0:00:07.5]} 50. Kc3 {[%clk 0:00:04]} 50... Ke6 {[%clk 0:00:08]}
51. Kd3 {[%clk 0:00:04.5]} 51... Ke7 {[%clk 0:00:08.4]} 52. Kc3 {[%clk
0:00:05.2]} 1/2-1/2

[Event "Late-Titled-Tuesday-Blitz-February-27-2024"]
[Site "Chess.com"]
[Date "2024.02.27"]
[Round "4"]
[White "Roberz12"]
[Black "TanitoluwaAps116"]
[Result "0-1"]
[WhiteElo "2603"]
[BlackElo "2895"]
[TimeControl "180+1"]
[EndTime "14:40:46 PST"]
[Termination "TanitoluwaAps116 won on time"]

1. Nf3 {[%clk 0:02:57.3]} 1... Nf6 {[%clk 0:02:52.3]} 2. g3 {[%clk 0:02:55.1]}
2... d5 {[%clk 0:02:51.5]} 3. Bg2 {[%clk 0:02:56]} 3... Bf5 {[%clk 0:02:51.5]}
4. O-O {[%clk 0:02:56.8]} 4... e6 {[%clk 0:02:51.8]} 5. d3 {[%clk 0:02:56.8]}
5... c6 {[%clk 0:02:52.2]} 6. Nc3 {[%clk 0:02:57]} 6... Nbd7 {[%clk 0:02:51.6]}
7. Qe1 {[%clk 0:02:57.4]} 7... Bb4 {[%clk 0:02:50.7]} 8. e4 {[%clk 0:02:57.7]}
8... dxe4 {[%clk 0:02:50.5]} 9. Nh4 {[%clk 0:02:46.2]} 9... O-O {[%clk
0:02:20.1]} 10. dxe4 {[%clk 0:02:45.1]} 10... Bg6 {[%clk 0:02:18]} 11. Nxg6
{[%clk 0:02:42.6]} 11... hxg6 {[%clk 0:02:17.8]} 12. a3 {[%clk 0:02:42.5]} 12...
Ba5 {[%clk 0:02:17.4]} 13. Bf4 {[%clk 0:02:34.8]} 13... e5 {[%clk 0:02:15.8]}
14. Bg5 {[%clk 0:02:31.4]} 14... Qe8 {[%clk 0:02:10.2]} 15. Rd1 {[%clk
0:02:28.8]} 15... Bb6 {[%clk 0:02:05.1]} 16. Na4 {[%clk 0:02:27.8]} 16... Nc5
{[%clk 0:01:50.5]} 17. Nxb6 {[%clk 0:02:09.4]} 17... axb6 {[%clk 0:01:51.4]} 18.
Bd2 {[%clk 0:01:45.7]} 18... Qe6 {[%clk 0:01:44.5]} 19. Bb4 {[%clk 0:01:42.5]}
19... Rfd8 {[%clk 0:01:39.9]} 20. Qe3 {[%clk 0:01:40.5]} 20... Qc4 {[%clk
0:01:34.3]} 21. Qc3 {[%clk 0:01:15.6]} 21... Qxc3 {[%clk 0:01:28.6]} 22. Bxc3
{[%clk 0:01:16.5]} 22... Re8 {[%clk 0:01:22.8]} 23. Rfe1 {[%clk 0:00:23.1]}
23... Kf8 {[%clk 0:01:14.9]} 24. Rb1 {[%clk 0:00:07]} 24... Ra4 {[%clk
0:01:09.2]} 25. f3 {[%clk 0:00:06.3]} 25... Ncd7 {[%clk 0:00:59.5]} 26. Red1
{[%clk 0:00:05.4]} 26... Ke7 {[%clk 0:00:58.2]} 27. Bf1 {[%clk 0:00:05.9]} 27...
b5 {[%clk 0:00:48.3]} 28. b3 {[%clk 0:00:05.5]} 28... Raa8 {[%clk 0:00:46.7]}
29. Kf2 {[%clk 0:00:03.1]} 29... Kd8 {[%clk 0:00:45.5]} 30. Bb2 {[%clk
0:00:03.3]} 30... Kc7 {[%clk 0:00:45.8]} 31. Rd3 {[%clk 0:00:03.3]} 31... Nc5
{[%clk 0:00:44.8]} 32. Rd2 {[%clk 0:00:03.9]} 32... Rh8 {[%clk 0:00:41.4]} 33.
h4 {[%clk 0:00:03.2]} 33... Rae8 {[%clk 0:00:38.5]} 34. Rbd1 {[%clk 0:00:02.5]}
34... Re7 {[%clk 0:00:28.3]} 35. Ke3 {[%clk 0:00:02.9]} 35... Nh5 {[%clk
0:00:24.5]} 36. Kf2 {[%clk 0:00:02.6]} 36... f5 {[%clk 0:00:22]} 37. Bg2 {[%clk
0:00:01.4]} 37... fxe4 {[%clk 0:00:20.7]} 38. fxe4 {[%clk 0:00:02.3]} 38... Rf8+
{[%clk 0:00:20.8]} 39. Ke3 {[%clk 0:00:02.1]} 39... Nxg3 {[%clk 0:00:18.6]} 40.
Rf2 {[%clk 0:00:02]} 40... Rxf2 {[%clk 0:00:18.1]} 41. Kxf2 {[%clk 0:00:02.9]}
41... Ngxe4+ {[%clk 0:00:19]} 42. Ke3 {[%clk 0:00:03.4]} 42... Nf6 {[%clk
0:00:18.8]} 43. Rg1 {[%clk 0:00:02.7]} 43... Nd5+ {[%clk 0:00:17.4]} 44. Bxd5
{[%clk 0:00:02.7]} 44... cxd5 {[%clk 0:00:18.3]} 45. Rxg6 {[%clk 0:00:03]} 45...
d4+ {[%clk 0:00:18.9]} 46. Ke2 {[%clk 0:00:02.4]} 46... Ne6 {[%clk 0:00:18]} 47.
h5 {[%clk 0:00:01.4]} 47... Nf4+ {[%clk 0:00:18.5]} 48. Kf3 {[%clk 0:00:02]}
48... Nxg6 {[%clk 0:00:19.4]} 49. hxg6 {[%clk 0:00:02.8]} 49... e4+ {[%clk
0:00:20.3]} 50. Ke2 {[%clk 0:00:03.1]} 50... Rd7 {[%clk 0:00:19.9]} 51. Kd2
{[%clk 0:00:02.9]} 51... Kc6 {[%clk 0:00:20.2]} 52. b4 {[%clk 0:00:02.8]} 52...
Kd5 {[%clk 0:00:20.5]} 53. c3 {[%clk 0:00:03.5]} 53... d3 {[%clk 0:00:19.6]} 54.
Ke3 {[%clk 0:00:03.4]} 54... Kc4 {[%clk 0:00:19.5]} 55. Ba1 {[%clk 0:00:03]}
55... d2 {[%clk 0:00:20]} 56. Bb2 {[%clk 0:00:02.1]} 56... d1=Q {[%clk
0:00:20.9]} 0-1

[Event "Late-Titled-Tuesday-Blitz-February-27-2024"]
[Site "Chess.com"]
[Date "2024.02.27"]
[Round "4"]
[White "Chessdude1987"]
[Black "guillembaches"]
[Result "0-1"]
[WhiteElo "2371"]
[BlackElo "2522"]
[TimeControl "180+1"]
[EndTime "14:40:46 PST"]
[Termination "guillembaches won by checkmate"]

1. e4 {[%clk 0:03:00.9]} 1... c5 {[%clk 0:03:00.1]} 2. Nf3 {[%clk 0:03:00.6]}
2... d6 {[%clk 0:03:00.7]} 3. Bc4 {[%clk 0:02:59.9]} 3... Nf6 {[%clk 0:03:00.8]}
4. d3 {[%clk 0:03:00.1]} 4... e6 {[%clk 0:03:00.9]} 5. O-O {[%clk 0:02:59.3]}
5... Nc6 {[%clk 0:03:01]} 6. c3 {[%clk 0:02:58.6]} 6... Be7 {[%clk 0:03:00.9]}
7. Bb3 {[%clk 0:02:58.7]} 7... O-O {[%clk 0:02:56.7]} 8. Re1 {[%clk 0:02:58.8]}
8... b5 {[%clk 0:02:52.7]} 9. d4 {[%clk 0:02:58.6]} 9... d5 {[%clk 0:02:49.1]}
10. e5 {[%clk 0:02:47.1]} 10... Ne4 {[%clk 0:02:48.9]} 11. Nbd2 {[%clk
0:02:45.9]} 11... Bb7 {[%clk 0:02:40.6]} 12. Bc2 {[%clk 0:02:39.1]} 12... cxd4
{[%clk 0:02:33]} 13. cxd4 {[%clk 0:02:38.9]} 13... Nb4 {[%clk 0:02:30.4]} 14.
Bb1 {[%clk 0:02:35.1]} 14... Rc8 {[%clk 0:02:09.5]} 15. a3 {[%clk 0:02:34.6]}
15... Na6 {[%clk 0:02:02.9]} 16. Nxe4 {[%clk 0:02:30.5]} 16... dxe4 {[%clk
0:02:03]} 17. Bxe4 {[%clk 0:02:30.7]} 17... Bxe4 {[%clk 0:02:00.5]} 18. Rxe4
{[%clk 0:02:30.8]} 18... Qd5 {[%clk 0:01:54.1]} 19. Qe2 {[%clk 0:02:22.5]} 19...
Rc4 {[%clk 0:01:45.3]} 20. h4 {[%clk 0:01:38.1]} 20... Rfc8 {[%clk 0:01:42.1]}
21. Bg5 {[%clk 0:01:36.2]} 21... Bf8 {[%clk 0:01:39.4]} 22. Rd1 {[%clk
0:01:31.5]} 22... b4 {[%clk 0:01:21.9]} 23. axb4 {[%clk 0:01:21.4]} 23... Nxb4
{[%clk 0:01:21.9]} 24. Ne1 {[%clk 0:01:19.7]} 24... a5 {[%clk 0:01:17.5]} 25. h5
{[%clk 0:01:04.8]} 25... h6 {[%clk 0:01:14.9]} 26. Bf4 {[%clk 0:01:00]} 26... a4
{[%clk 0:01:07.2]} 27. g3 {[%clk 0:00:56.9]} 27... Nc2 {[%clk 0:00:59.9]} 28.
Nf3 {[%clk 0:00:40.9]} 28... a3 {[%clk 0:00:45.9]} 29. bxa3 {[%clk 0:00:39.5]}
29... Nxa3 {[%clk 0:00:46.1]} 30. Ne1 {[%clk 0:00:38.2]} 30... Nb5 {[%clk
0:00:43.4]} 31. Re3 {[%clk 0:00:20.6]} 31... Nc3 {[%clk 0:00:36]} 32. Rxc3
{[%clk 0:00:20.4]} 32... Rxc3 {[%clk 0:00:36.3]} 33. Be3 {[%clk 0:00:19.6]}
33... R3c6 {[%clk 0:00:30.9]} 34. Nd3 {[%clk 0:00:17.9]} 34... Qe4 {[%clk
0:00:27.7]} 35. Nf4 {[%clk 0:00:11.7]} 35... Rc2 {[%clk 0:00:22]} 36. Qg4 {[%clk
0:00:10.9]} 36... Kh8 {[%clk 0:00:21.6]} 37. Re1 {[%clk 0:00:05.9]} 37... Qb7
{[%clk 0:00:17.3]} 38. Qh4 {[%clk 0:00:03.7]} 38... Rb2 {[%clk 0:00:15.1]} 39.
Qg4 {[%clk 0:00:03.3]} 39... Rb1 {[%clk 0:00:15]} 40. Rf1 {[%clk 0:00:01.8]}
40... Rxf1+ {[%clk 0:00:13.4]} 41. Kxf1 {[%clk 0:00:02.7]} 41... Qh1+ {[%clk
0:00:12.2]} 42. Ke2 {[%clk 0:00:02.2]} 42... Qb1 {[%clk 0:00:10.3]} 43. Kf3
{[%clk 0:00:01.8]} 43... Qb7+ {[%clk 0:00:10.1]} 44. Ke2 {[%clk 0:00:01.8]}
44... Rc2+ {[%clk 0:00:08.9]} 45. Kf1 {[%clk 0:00:01.8]} 45... Qh1# {[%clk
0:00:08.9]} 0-1

[Event "Late-Titled-Tuesday-Blitz-February-27-2024"]
[Site "Chess.com"]
[Date "2024.02.27"]
[Round "4"]
[White "Flaccidmoves"]
[Black "Mikhail_Golubev"]
[Result "0-1"]
[WhiteElo "2466"]
[BlackElo "2639"]
[TimeControl "180+1"]
[EndTime "14:40:50 PST"]
[Termination "Mikhail_Golubev won on time"]

1. e4 {[%clk 0:03:00.9]} 1... c5 {[%clk 0:02:59.3]} 2. Nf3 {[%clk 0:02:56.8]}
2... d6 {[%clk 0:02:59.3]} 3. Bb5+ {[%clk 0:02:55.8]} 3... Bd7 {[%clk
0:02:58.7]} 4. a4 {[%clk 0:02:54.9]} 4... Nf6 {[%clk 0:02:50.8]} 5. Nc3 {[%clk
0:02:53]} 5... g6 {[%clk 0:02:42.7]} 6. O-O {[%clk 0:02:50.1]} 6... Bg7 {[%clk
0:02:40.3]} 7. Re1 {[%clk 0:02:47.4]} 7... O-O {[%clk 0:02:37.2]} 8. e5 {[%clk
0:02:45.5]} 8... dxe5 {[%clk 0:02:36.2]} 9. Nxe5 {[%clk 0:02:46.4]} 9... Bf5
{[%clk 0:02:21]} 10. d3 {[%clk 0:02:43.5]} 10... Nbd7 {[%clk 0:02:12.4]} 11.
Nxd7 {[%clk 0:02:38.6]} 11... Bxd7 {[%clk 0:02:09.6]} 12. Bg5 {[%clk 0:02:37.8]}
12... a6 {[%clk 0:01:59.2]} 13. Bc4 {[%clk 0:02:37.1]} 13... Bc6 {[%clk
0:01:47.7]} 14. a5 {[%clk 0:02:32.4]} 14... h6 {[%clk 0:01:47.4]} 15. Bh4 {[%clk
0:02:23.7]} 15... Qd4 {[%clk 0:01:38.5]} 16. Bg3 {[%clk 0:02:20.4]} 16... Qd7
{[%clk 0:01:12.3]} 17. Qe2 {[%clk 0:02:08.1]} 17... e6 {[%clk 0:01:10.5]} 18.
Be5 {[%clk 0:02:06.8]} 18... Nh5 {[%clk 0:01:00.8]} 19. Bxg7 {[%clk 0:01:54.9]}
19... Kxg7 {[%clk 0:01:01]} 20. Qe5+ {[%clk 0:01:55.4]} 20... Kh7 {[%clk
0:01:00.2]} 21. Qxc5 {[%clk 0:01:55.8]} 21... Rac8 {[%clk 0:00:51.7]} 22. Qe5
{[%clk 0:01:52.5]} 22... Qd8 {[%clk 0:00:43.5]} 23. g3 {[%clk 0:01:25]} 23...
Nf6 {[%clk 0:00:41.6]} 24. Ne2 {[%clk 0:01:07.5]} 24... Nd5 {[%clk 0:00:38.3]}
25. Nd4 {[%clk 0:01:00.7]} 25... Ne7 {[%clk 0:00:22.8]} 26. Nxc6 {[%clk
0:00:51.2]} 26... Nxc6 {[%clk 0:00:22.2]} 27. Qe4 {[%clk 0:00:45.8]} 27... Nxa5
{[%clk 0:00:21]} 28. c3 {[%clk 0:00:37.5]} 28... Nxc4 {[%clk 0:00:17.8]} 29.
dxc4 {[%clk 0:00:38.4]} 29... Qc7 {[%clk 0:00:17.7]} 30. b3 {[%clk 0:00:38]}
30... Rfd8 {[%clk 0:00:16.9]} 31. Red1 {[%clk 0:00:38]} 31... Rxd1+ {[%clk
0:00:16.6]} 32. Rxd1 {[%clk 0:00:37.8]} 32... b5 {[%clk 0:00:16.8]} 33. cxb5
{[%clk 0:00:26.1]} 33... axb5 {[%clk 0:00:17.7]} 34. Rd3 {[%clk 0:00:25]} 34...
Kg7 {[%clk 0:00:10.7]} 35. Qd4+ {[%clk 0:00:23.6]} 35... e5 {[%clk 0:00:11]} 36.
Qd5 {[%clk 0:00:21.3]} 36... Qc5 {[%clk 0:00:10.3]} 37. Qxc5 {[%clk 0:00:18.9]}
37... Rxc5 {[%clk 0:00:11.2]} 38. f3 {[%clk 0:00:17.1]} 38... Kf6 {[%clk
0:00:11.3]} 39. Kf2 {[%clk 0:00:17.6]} 39... Ke6 {[%clk 0:00:11.5]} 40. Ke3
{[%clk 0:00:18]} 40... f5 {[%clk 0:00:12]} 41. h4 {[%clk 0:00:17.5]} 41... g5
{[%clk 0:00:12]} 42. hxg5 {[%clk 0:00:17.7]} 42... hxg5 {[%clk 0:00:12.9]} 43.
g4 {[%clk 0:00:10.1]} 43... fxg4 {[%clk 0:00:12.5]} 44. fxg4 {[%clk 0:00:11]}
44... Rc8 {[%clk 0:00:12.3]} 45. Ke4 {[%clk 0:00:10.3]} 45... Rf8 {[%clk
0:00:11.2]} 46. Rh3 {[%clk 0:00:06.1]} 46... Rf4+ {[%clk 0:00:11]} 47. Ke3
{[%clk 0:00:06.6]} 47... Rxg4 {[%clk 0:00:11.7]} 48. Rh6+ {[%clk 0:00:06.6]}
48... Kf5 {[%clk 0:00:11]} 49. Rb6 {[%clk 0:00:06.8]} 49... Rg3+ {[%clk
0:00:10.9]} 50. Kd2 {[%clk 0:00:07.3]} 50... Ke4 {[%clk 0:00:11]} 51. Rxb5
{[%clk 0:00:06.6]} 51... Rg2+ {[%clk 0:00:11]} 52. Kc1 {[%clk 0:00:04.2]} 52...
g4 {[%clk 0:00:11.5]} 53. Rb8 {[%clk 0:00:01.8]} 53... Kd3 {[%clk 0:00:10.9]}
0-1

[Event "Late-Titled-Tuesday-Blitz-February-27-2024"]
[Site "Chess.com"]
[Date "2024.02.27"]
[Round "4"]
[White "TheAlienParty"]
[Black "Casper"]
[Result "0-1"]
[WhiteElo "2389"]
[BlackElo "2531"]
[TimeControl "180+1"]
[EndTime "14:40:50 PST"]
[Termination "Casper won on time"]

1. c4 {[%clk 0:03:00.8]} 1... Nc6 {[%clk 0:02:58.9]} 2. d4 {[%clk 0:02:59.3]}
2... e5 {[%clk 0:02:58.9]} 3. d5 {[%clk 0:02:59.1]} 3... Nce7 {[%clk 0:02:59.1]}
4. Nc3 {[%clk 0:02:55.4]} 4... Ng6 {[%clk 0:02:58.1]} 5. g3 {[%clk 0:02:55.4]}
5... Bb4 {[%clk 0:02:56.7]} 6. Qc2 {[%clk 0:02:54.5]} 6... Nf6 {[%clk
0:02:55.4]} 7. a3 {[%clk 0:02:54.6]} 7... Bxc3+ {[%clk 0:02:55]} 8. Qxc3 {[%clk
0:02:54.8]} 8... O-O {[%clk 0:02:55.2]} 9. h4 {[%clk 0:02:53.8]} 9... Ne4 {[%clk
0:02:53.9]} 10. Qe3 {[%clk 0:02:53.5]} 10... f5 {[%clk 0:02:53.9]} 11. h5 {[%clk
0:02:53.3]} 11... Nh8 {[%clk 0:02:54]} 12. Nf3 {[%clk 0:02:48.4]} 12... d6
{[%clk 0:02:53.2]} 13. Nd2 {[%clk 0:02:44.7]} 13... Nf6 {[%clk 0:02:47]} 14. Bg2
{[%clk 0:02:39.9]} 14... Nf7 {[%clk 0:02:47.2]} 15. Qc3 {[%clk 0:02:35.7]} 15...
a5 {[%clk 0:02:40.4]} 16. Nf3 {[%clk 0:02:35.1]} 16... Ne4 {[%clk 0:02:37.9]}
17. Qc2 {[%clk 0:02:30.7]} 17... a4 {[%clk 0:02:36.4]} 18. Nh4 {[%clk
0:02:27.3]} 18... Nc5 {[%clk 0:02:34.6]} 19. Be3 {[%clk 0:02:22.6]} 19... Nb3
{[%clk 0:02:31.8]} 20. Rd1 {[%clk 0:02:22]} 20... e4 {[%clk 0:02:31.8]} 21. g4
{[%clk 0:02:17.4]} 21... fxg4 {[%clk 0:02:02.4]} 22. Bxe4 {[%clk 0:02:16.6]}
22... Ng5 {[%clk 0:01:40.2]} 23. Bxg5 {[%clk 0:02:11.1]} 23... Qxg5 {[%clk
0:01:41.1]} 24. Bxh7+ {[%clk 0:02:10.8]} 24... Kf7 {[%clk 0:01:41.8]} 25. Qg6+
{[%clk 0:02:03]} 25... Qxg6 {[%clk 0:01:40.4]} 26. Bxg6+ {[%clk 0:02:02.9]}
26... Kg8 {[%clk 0:01:37.8]} 27. Rd3 {[%clk 0:01:59.4]} 27... Rf4 {[%clk
0:01:15]} 28. Rc3 {[%clk 0:01:54.7]} 28... Bd7 {[%clk 0:01:11.7]} 29. Ng2 {[%clk
0:01:52.4]} 29... Rd4 {[%clk 0:01:07.6]} 30. Bc2 {[%clk 0:01:43.1]} 30... Nd2
{[%clk 0:00:44.5]} 31. Bd3 {[%clk 0:01:27]} 31... Ne4 {[%clk 0:00:34.8]} 32. e3
{[%clk 0:01:15.9]} 32... Nxc3 {[%clk 0:00:31.9]} 33. exd4 {[%clk 0:01:15.8]}
33... Re8+ {[%clk 0:00:27.2]} 34. Ne3 {[%clk 0:01:12.4]} 34... Ne4 {[%clk
0:00:19.3]} 35. Rg1 {[%clk 0:01:11.8]} 35... g3 {[%clk 0:00:18.7]} 36. fxg3
{[%clk 0:01:10.1]} 36... Ng5 {[%clk 0:00:17.7]} 37. Bg6 {[%clk 0:00:32.5]} 37...
Rxe3+ {[%clk 0:00:17.3]} 38. Kd2 {[%clk 0:00:32.6]} 38... Rb3 {[%clk 0:00:16.5]}
39. Kc2 {[%clk 0:00:27.9]} 39... Nf3 {[%clk 0:00:14.4]} 40. Rd1 {[%clk
0:00:27.7]} 40... Bg4 {[%clk 0:00:13.7]} 41. Be4 {[%clk 0:00:11.1]} 41... Re3
{[%clk 0:00:13]} 42. Bxf3 {[%clk 0:00:10.7]} 42... Bxf3 {[%clk 0:00:13.4]} 43.
Rd2 {[%clk 0:00:09.9]} 43... Bxh5 {[%clk 0:00:12.9]} 44. c5 {[%clk 0:00:09.7]}
44... Bg6+ {[%clk 0:00:12.7]} 45. Kd1 {[%clk 0:00:09.6]} 45... Rxg3 {[%clk
0:00:12.8]} 46. cxd6 {[%clk 0:00:09.7]} 46... cxd6 {[%clk 0:00:13.7]} 47. Re2
{[%clk 0:00:09.8]} 47... Bh5 {[%clk 0:00:14.2]} 48. Ke1 {[%clk 0:00:09.9]} 48...
Bxe2 {[%clk 0:00:14.7]} 49. Kxe2 {[%clk 0:00:10.3]} 49... g5 {[%clk 0:00:13.8]}
50. Kf2 {[%clk 0:00:10.4]} 50... Rb3 {[%clk 0:00:14.7]} 0-1

[Event "Late-Titled-Tuesday-Blitz-February-27-2024"]
[Site "Chess.com"]
[Date "2024.02.27"]
[Round "4"]
[White "Hrant_ChessMood"]
[Black "otrov-11"]
[Result "1-0"]
[WhiteElo "2996"]
[BlackElo "2616"]
[TimeControl "180+1"]
[EndTime "14:40:54 PST"]
[Termination "Hrant_ChessMood won by resignation"]

1. Nf3 {[%clk 0:03:00.9]} 1... Nf6 {[%clk 0:02:59.4]} 2. c4 {[%clk 0:03:01.1]}
2... b6 {[%clk 0:02:57.8]} 3. Nc3 {[%clk 0:02:59.9]} 3... Bb7 {[%clk 0:02:58.3]}
4. d4 {[%clk 0:02:58.3]} 4... e6 {[%clk 0:02:58.6]} 5. e3 {[%clk 0:02:58.3]}
5... Bb4 {[%clk 0:02:57.6]} 6. Bd3 {[%clk 0:02:58.5]} 6... O-O {[%clk
0:02:52.3]} 7. O-O {[%clk 0:02:58.6]} 7... Bxc3 {[%clk 0:02:52.7]} 8. bxc3
{[%clk 0:02:58.2]} 8... c5 {[%clk 0:02:51.6]} 9. Nd2 {[%clk 0:02:50.9]} 9... d6
{[%clk 0:02:49.9]} 10. e4 {[%clk 0:02:50.6]} 10... Nc6 {[%clk 0:02:50]} 11. Bb2
{[%clk 0:02:44.9]} 11... Ne8 {[%clk 0:02:31.6]} 12. f4 {[%clk 0:02:41.2]} 12...
Rc8 {[%clk 0:02:04.1]} 13. Qe2 {[%clk 0:02:38.7]} 13... Ne7 {[%clk 0:01:45]} 14.
a4 {[%clk 0:02:29.7]} 14... f5 {[%clk 0:01:35.9]} 15. a5 {[%clk 0:02:22.7]}
15... bxa5 {[%clk 0:01:30.4]} 16. d5 {[%clk 0:02:00.4]} 16... exd5 {[%clk
0:01:24.9]} 17. cxd5 {[%clk 0:01:54.9]} 17... fxe4 {[%clk 0:01:25]} 18. Qxe4
{[%clk 0:01:48.8]} 18... Nf6 {[%clk 0:01:25.4]} 19. Qe6+ {[%clk 0:01:48.9]}
19... Kh8 {[%clk 0:01:24.8]} 20. c4 {[%clk 0:01:49.6]} 20... Rb8 {[%clk
0:01:18.9]} 21. Bc3 {[%clk 0:01:44.8]} 21... Bc8 {[%clk 0:01:17.3]} 22. Qe2
{[%clk 0:01:39]} 22... Bf5 {[%clk 0:01:15.4]} 23. Rxa5 {[%clk 0:01:28.4]} 23...
Rb7 {[%clk 0:01:12.2]} 24. Rfa1 {[%clk 0:01:23.9]} 24... Qb8 {[%clk 0:01:02.8]}
25. h3 {[%clk 0:01:22.8]} 25... Bxd3 {[%clk 0:00:57.7]} 26. Qxd3 {[%clk
0:01:22.8]} 26... Ng6 {[%clk 0:00:58.6]} 27. Rf1 {[%clk 0:01:07.9]} 27... Qd8
{[%clk 0:00:46.7]} 28. Ra6 {[%clk 0:01:06.6]} 28... Qe7 {[%clk 0:00:36.1]} 29.
Raa1 {[%clk 0:01:03.4]} 29... Nh5 {[%clk 0:00:34.8]} 30. Rae1 {[%clk 0:01:02.8]}
30... Qh4 {[%clk 0:00:33.5]} 31. Ne4 {[%clk 0:00:43.7]} 31... Ngxf4 {[%clk
0:00:30.3]} 32. Nxd6 {[%clk 0:00:30.1]} 32... Qg5 {[%clk 0:00:19.3]} 33. Qf3
{[%clk 0:00:29.1]} 33... Rd7 {[%clk 0:00:17.3]} 34. Ne4 {[%clk 0:00:26.6]} 34...
Qg6 {[%clk 0:00:16.9]} 35. Nxc5 {[%clk 0:00:21.9]} 35... Rdf7 {[%clk 0:00:17.3]}
36. Qg4 {[%clk 0:00:17.4]} 36... Qc2 {[%clk 0:00:14.5]} 37. Ne4 {[%clk
0:00:13.6]} 37... h6 {[%clk 0:00:12.1]} 38. Kh2 {[%clk 0:00:09.8]} 38... Qd3
{[%clk 0:00:07.8]} 39. Nd6 {[%clk 0:00:09.2]} 39... Rc7 {[%clk 0:00:02.8]} 40.
Be5 {[%clk 0:00:08.8]} 40... Rxc4 {[%clk 0:00:01.4]} 41. Nxc4 {[%clk 0:00:05.9]}
41... Qxc4 {[%clk 0:00:02.3]} 42. d6 {[%clk 0:00:06.3]} 42... Qf7 {[%clk
0:00:01.6]} 43. d7 {[%clk 0:00:06.4]} 43... Rd8 {[%clk 0:00:01.6]} 44. Bxf4
{[%clk 0:00:06.9]} 44... Nxf4 {[%clk 0:00:02.4]} 45. Rxf4 {[%clk 0:00:07.8]}
45... Qxd7 {[%clk 0:00:03.2]} 46. Qxd7 {[%clk 0:00:07.7]} 46... Rxd7 {[%clk
0:00:04.1]} 47. Rfe4 {[%clk 0:00:08.1]} 1-0